[Event "Early-Titled-Tuesday-Blitz-October-10-2023"]
[Site "Chess.com"]
[Date "2023.10.10"]
[Round "2"]
[White "ilm2034"]
[Black "MikaelyanArman"]
[Result "1-0"]
[WhiteElo "2601"]
[BlackElo "2819"]
[TimeControl "180+1"]
[EndTime "8:19:00 PDT"]
[Termination "ilm2034 won by resignation"]

1. e4 {[%clk 0:02:55.2]} 1... e5 {[%clk 0:03:00]} 2. Nf3 {[%clk 0:02:52.8]} 2...
Nc6 {[%clk 0:03:00.4]} 3. Nc3 {[%clk 0:02:51.4]} 3... Nf6 {[%clk 0:03:00.5]} 4.
g3 {[%clk 0:02:51.3]} 4... Bc5 {[%clk 0:02:59]} 5. Bg2 {[%clk 0:02:51.6]} 5...
d6 {[%clk 0:02:59.6]} 6. O-O {[%clk 0:02:52.2]} 6... a5 {[%clk 0:03:00]} 7. d3
{[%clk 0:02:50.2]} 7... a4 {[%clk 0:03:00.2]} 8. a3 {[%clk 0:02:50.1]} 8... h6
{[%clk 0:02:54.9]} 9. Be3 {[%clk 0:02:48.9]} 9... O-O {[%clk 0:02:34]} 10. Qd2
{[%clk 0:02:44.5]} 10... Bxe3 {[%clk 0:02:29.4]} 11. Qxe3 {[%clk 0:02:37.7]}
11... Bg4 {[%clk 0:02:25.2]} 12. Ne2 {[%clk 0:02:34.9]} 12... Qd7 {[%clk
0:02:03.7]} 13. c3 {[%clk 0:02:28.5]} 13... Rfe8 {[%clk 0:02:00.3]} 14. Rfe1
{[%clk 0:02:25]} 14... Bh3 {[%clk 0:01:54.1]} 15. Rad1 {[%clk 0:02:23.6]} 15...
Bxg2 {[%clk 0:01:50.3]} 16. Kxg2 {[%clk 0:02:20.2]} 16... d5 {[%clk 0:01:42.6]}
17. Nh4 {[%clk 0:02:12]} 17... d4 {[%clk 0:01:34.3]} 18. cxd4 {[%clk 0:02:06]}
18... exd4 {[%clk 0:01:33.4]} 19. Qd2 {[%clk 0:02:01.4]} 19... Ne5 {[%clk
0:01:22.9]} 20. Rc1 {[%clk 0:01:51.6]} 20... b6 {[%clk 0:01:21.3]} 21. Nf5
{[%clk 0:01:46.1]} 21... c5 {[%clk 0:01:21.3]} 22. h3 {[%clk 0:01:40.9]} 22...
g6 {[%clk 0:01:02.5]} 23. Qxh6 {[%clk 0:01:14.6]} 23... gxf5 {[%clk 0:00:58.8]}
24. Qxf6 {[%clk 0:01:14.7]} 24... fxe4 {[%clk 0:00:58.9]} 25. Nf4 {[%clk
0:01:11.5]} 25... Qc6 {[%clk 0:00:39.6]} 26. Qxc6 {[%clk 0:00:48.3]} 26... Nxc6
{[%clk 0:00:40.5]} 27. dxe4 {[%clk 0:00:31.9]} 27... Ne5 {[%clk 0:00:39.8]} 28.
Nd5 {[%clk 0:00:31.9]} 28... Kg7 {[%clk 0:00:37.3]} 29. Re2 {[%clk 0:00:25.2]}
29... Rab8 {[%clk 0:00:24.2]} 30. f4 {[%clk 0:00:24.4]} 30... Nc6 {[%clk
0:00:19.4]} 31. Kf3 {[%clk 0:00:25.1]} 31... Na5 {[%clk 0:00:19.2]} 32. g4
{[%clk 0:00:24.3]} 32... Nb3 {[%clk 0:00:19.6]} 33. Rg1 {[%clk 0:00:22.9]} 33...
d3 {[%clk 0:00:18.9]} 34. Rh2 {[%clk 0:00:22.8]} 34... Rbd8 {[%clk 0:00:17.5]}
35. f5 {[%clk 0:00:21.4]} 35... Nd4+ {[%clk 0:00:17.6]} 36. Kf4 {[%clk
0:00:21.5]} 36... f6 {[%clk 0:00:16.7]} 37. h4 {[%clk 0:00:21.2]} 37... Ne2+
{[%clk 0:00:16.8]} 38. Rxe2 {[%clk 0:00:21.3]} 38... dxe2 {[%clk 0:00:16.9]} 39.
Re1 {[%clk 0:00:20.1]} 39... c4 {[%clk 0:00:16.7]} 40. g5 {[%clk 0:00:20.3]}
40... b5 {[%clk 0:00:09.7]} 41. gxf6+ {[%clk 0:00:20.1]} 41... Kf7 {[%clk
0:00:10.5]} 42. Kf3 {[%clk 0:00:16.6]} 42... Rxd5 {[%clk 0:00:07.7]} 43. exd5
{[%clk 0:00:16.8]} 43... b4 {[%clk 0:00:08.6]} 44. axb4 {[%clk 0:00:17]} 44...
c3 {[%clk 0:00:09.2]} 45. bxc3 {[%clk 0:00:16]} 45... a3 {[%clk 0:00:09.9]} 46.
d6 {[%clk 0:00:16.2]} 46... a2 {[%clk 0:00:09.1]} 47. d7 {[%clk 0:00:16.8]}
47... Rd8 {[%clk 0:00:09]} 48. Kxe2 {[%clk 0:00:17.4]} 48... Rxd7 {[%clk
0:00:09.4]} 49. Ra1 {[%clk 0:00:17.6]} 49... Ra7 {[%clk 0:00:07.8]} 50. Kd3
{[%clk 0:00:16.6]} 50... Kxf6 {[%clk 0:00:08.4]} 51. b5 {[%clk 0:00:17.3]} 51...
Kxf5 {[%clk 0:00:08.1]} 52. c4 {[%clk 0:00:17.9]} 52... Ke5 {[%clk 0:00:05.7]}
53. h5 {[%clk 0:00:17.8]} 53... Ra3+ {[%clk 0:00:05]} 54. Kc2 {[%clk 0:00:17.9]}
54... Kd4 {[%clk 0:00:05.9]} 55. Kb2 {[%clk 0:00:17.2]} 55... Rh3 {[%clk
0:00:06]} 56. b6 {[%clk 0:00:15.8]} 56... Kxc4 {[%clk 0:00:06]} 57. Kxa2 {[%clk
0:00:14.6]} 57... Rh2+ {[%clk 0:00:03.2]} 58. Ka3 {[%clk 0:00:14.8]} 58... Rh3+
{[%clk 0:00:03]} 59. Ka4 {[%clk 0:00:14.8]} 59... Rxh5 {[%clk 0:00:03.3]} 60. b7
{[%clk 0:00:12.6]} 60... Rh8 {[%clk 0:00:02.3]} 61. Rc1+ {[%clk 0:00:13.1]}
61... Kd5 {[%clk 0:00:01.9]} 62. Rc8 {[%clk 0:00:09.8]} 62... Rh4+ {[%clk
0:00:02.4]} 63. Ka5 {[%clk 0:00:09.9]} 63... Rh1 {[%clk 0:00:02]} 64. b8=Q
{[%clk 0:00:10.3]} 64... Ra1+ {[%clk 0:00:02.7]} 65. Kb6 {[%clk 0:00:11]} 65...
Rb1+ {[%clk 0:00:03.2]} 66. Kc7 {[%clk 0:00:11.8]} 66... Rc1+ {[%clk 0:00:03.4]}
67. Kd7 {[%clk 0:00:12.1]} 67... Rd1 {[%clk 0:00:04.2]} 68. Qd6+ {[%clk
0:00:11.7]} 68... Ke4 {[%clk 0:00:05.1]} 69. Qxd1 {[%clk 0:00:12.4]} 1-0

[Event "Early-Titled-Tuesday-Blitz-October-10-2023"]
[Site "Chess.com"]
[Date "2023.10.10"]
[Round "2"]
[White "K_A_S_T_O_R"]
[Black "JiaHaoxiang"]
[Result "1-0"]
[WhiteElo "2884"]
[BlackElo "2591"]
[TimeControl "180+1"]
[EndTime "8:19:02 PDT"]
[Termination "K_A_S_T_O_R won by resignation"]

1. e4 {[%clk 0:03:00.9]} 1... c5 {[%clk 0:02:57]} 2. Nf3 {[%clk 0:03:00.3]} 2...
d6 {[%clk 0:02:56.5]} 3. d4 {[%clk 0:03:00.3]} 3... cxd4 {[%clk 0:02:54.1]} 4.
Nxd4 {[%clk 0:03:00.9]} 4... Nf6 {[%clk 0:02:54.8]} 5. Nc3 {[%clk 0:03:01.4]}
5... g6 {[%clk 0:02:51.1]} 6. Be2 {[%clk 0:02:58]} 6... Bg7 {[%clk 0:02:44.1]}
7. O-O {[%clk 0:02:58]} 7... O-O {[%clk 0:02:34.3]} 8. Bg5 {[%clk 0:02:56.5]}
8... Nc6 {[%clk 0:02:33.4]} 9. Nb3 {[%clk 0:02:54.7]} 9... Be6 {[%clk
0:02:27.8]} 10. Qd2 {[%clk 0:02:52.4]} 10... a6 {[%clk 0:02:16.2]} 11. Bh6
{[%clk 0:02:48.1]} 11... b5 {[%clk 0:02:14.7]} 12. Bxg7 {[%clk 0:02:46.5]} 12...
Kxg7 {[%clk 0:02:15.6]} 13. a3 {[%clk 0:02:45.2]} 13... d5 {[%clk 0:02:09.6]}
14. exd5 {[%clk 0:02:37.5]} 14... Bxd5 {[%clk 0:02:01.6]} 15. Nxd5 {[%clk
0:02:28.7]} 15... Qxd5 {[%clk 0:02:00]} 16. Qc3 {[%clk 0:02:28.3]} 16... Rac8
{[%clk 0:01:57.7]} 17. Bf3 {[%clk 0:02:27.7]} 17... Qe5 {[%clk 0:01:47.9]} 18.
Rfd1 {[%clk 0:02:00.8]} 18... Qxc3 {[%clk 0:01:43.1]} 19. bxc3 {[%clk
0:02:01.3]} 19... Ne5 {[%clk 0:01:43.5]} 20. Bb7 {[%clk 0:01:59.6]} 20... Rxc3
{[%clk 0:01:43.6]} 21. Bxa6 {[%clk 0:01:59.9]} 21... Rxc2 {[%clk 0:01:42.7]} 22.
Bxb5 {[%clk 0:01:58.8]} 22... Rb8 {[%clk 0:01:39.7]} 23. Nd4 {[%clk 0:01:57.8]}
23... Rb2 {[%clk 0:01:40]} 24. a4 {[%clk 0:01:57]} 24... Ne4 {[%clk 0:01:38.3]}
25. Re1 {[%clk 0:01:53.3]} 25... f5 {[%clk 0:01:09.9]} 26. f3 {[%clk 0:01:45.3]}
26... Rd2 {[%clk 0:00:56]} 27. Ne6+ {[%clk 0:01:00.4]} 27... Kf6 {[%clk
0:00:54.1]} 28. Nc7 {[%clk 0:01:00.4]} 28... Nc3 {[%clk 0:00:46.1]} 29. Ne8+
{[%clk 0:00:55.5]} 29... Kf7 {[%clk 0:00:34.8]} 30. Nc7 {[%clk 0:00:43.5]} 30...
Nxb5 {[%clk 0:00:27.8]} 31. axb5 {[%clk 0:00:38.9]} 31... Nd3 {[%clk 0:00:26.8]}
32. Red1 {[%clk 0:00:37.3]} 32... Rxd1+ {[%clk 0:00:16.7]} 33. Rxd1 {[%clk
0:00:37.8]} 33... Nc5 {[%clk 0:00:16.2]} 34. Rb1 {[%clk 0:00:19.9]} 34... Na4
{[%clk 0:00:14]} 35. Nd5 {[%clk 0:00:19.1]} 35... Ke6 {[%clk 0:00:11.3]} 36.
Nf4+ {[%clk 0:00:18.9]} 36... Ke5 {[%clk 0:00:10.7]} 37. Nd3+ {[%clk 0:00:16]}
37... Kd4 {[%clk 0:00:10.5]} 38. Ne1 {[%clk 0:00:16.3]} 38... Kc5 {[%clk
0:00:07.8]} 39. Nd3+ {[%clk 0:00:15.7]} 39... Kd4 {[%clk 0:00:06.1]} 40. Nf4
{[%clk 0:00:15.7]} 40... e5 {[%clk 0:00:05.7]} 41. Rb4+ {[%clk 0:00:15.1]} 41...
Kc5 {[%clk 0:00:05]} 42. Nd3+ {[%clk 0:00:15.3]} 42... Kd5 {[%clk 0:00:04.9]}
43. Rxa4 {[%clk 0:00:15.9]} 43... Rxb5 {[%clk 0:00:05.8]} 44. Kf2 {[%clk
0:00:15.8]} 44... Rb3 {[%clk 0:00:05.1]} 45. Ke2 {[%clk 0:00:16.2]} 45... e4
{[%clk 0:00:05.1]} 46. fxe4+ {[%clk 0:00:16.7]} 46... fxe4 {[%clk 0:00:06]} 47.
Ne1 {[%clk 0:00:16.8]} 47... Rb2+ {[%clk 0:00:06]} 48. Kf1 {[%clk 0:00:17.3]}
48... Rb1 {[%clk 0:00:05.8]} 49. Ra3 {[%clk 0:00:17.3]} 49... Ke5 {[%clk
0:00:06.2]} 50. Ra2 {[%clk 0:00:17.6]} 50... Kf4 {[%clk 0:00:06.5]} 51. Rf2+
{[%clk 0:00:18.2]} 51... Ke5 {[%clk 0:00:06.6]} 52. Re2 {[%clk 0:00:18.6]} 52...
Kf4 {[%clk 0:00:06.6]} 53. g3+ {[%clk 0:00:19.5]} 53... Ke5 {[%clk 0:00:06.8]}
54. Kf2 {[%clk 0:00:20.4]} 54... Kd4 {[%clk 0:00:07.3]} 55. Nc2+ {[%clk
0:00:20.1]} 55... Kd3 {[%clk 0:00:07.9]} 56. Ne3 {[%clk 0:00:20.6]} 56... Rb5
{[%clk 0:00:07.6]} 57. Ng2 {[%clk 0:00:19.1]} 57... Rf5+ {[%clk 0:00:07.7]} 58.
Nf4+ {[%clk 0:00:19.7]} 58... Kd4 {[%clk 0:00:08.4]} 59. Rd2+ {[%clk 0:00:20.2]}
59... Kc3 {[%clk 0:00:08.8]} 60. Ke3 {[%clk 0:00:20.7]} 60... Ra5 {[%clk
0:00:08.3]} 61. Ne2+ {[%clk 0:00:20.8]} 61... Kc4 {[%clk 0:00:08.7]} 62. Rd4+
{[%clk 0:00:21.4]} 62... Kc5 {[%clk 0:00:09.4]} 63. Rxe4 {[%clk 0:00:22]} 63...
Ra3+ {[%clk 0:00:10.2]} 64. Kf2 {[%clk 0:00:21.5]} 64... Kd5 {[%clk 0:00:10.6]}
65. Re3 {[%clk 0:00:21.8]} 65... Ra2 {[%clk 0:00:09.9]} 66. h4 {[%clk
0:00:22.4]} 66... h5 {[%clk 0:00:09.7]} 67. Kf3 {[%clk 0:00:22.8]} 67... Kd6
{[%clk 0:00:09.8]} 68. Nf4 {[%clk 0:00:23.3]} 1-0

[Event "Early-Titled-Tuesday-Blitz-October-10-2023"]
[Site "Chess.com"]
[Date "2023.10.10"]
[Round "2"]
[White "LeninGuerra"]
[Black "Abund"]
[Result "1-0"]
[WhiteElo "2568"]
[BlackElo "2775"]
[TimeControl "180+1"]
[EndTime "8:19:02 PDT"]
[Termination "LeninGuerra won by resignation"]

1. e4 {[%clk 0:03:00.9]} 1... e5 {[%clk 0:03:00.1]} 2. Nf3 {[%clk 0:03:00.8]}
2... Nc6 {[%clk 0:03:00.3]} 3. Bb5 {[%clk 0:03:01.2]} 3... a6 {[%clk 0:02:59.9]}
4. Ba4 {[%clk 0:03:01.8]} 4... b5 {[%clk 0:03:00.1]} 5. Bb3 {[%clk 0:03:01.6]}
5... Be7 {[%clk 0:02:58.2]} 6. Qe2 {[%clk 0:03:02.2]} 6... Nf6 {[%clk
0:02:57.7]} 7. O-O {[%clk 0:03:02.4]} 7... O-O {[%clk 0:02:57.6]} 8. c3 {[%clk
0:03:03]} 8... d6 {[%clk 0:02:52.9]} 9. Rd1 {[%clk 0:03:02.9]} 9... Na5 {[%clk
0:02:49.9]} 10. Bc2 {[%clk 0:03:02.9]} 10... c5 {[%clk 0:02:50.4]} 11. d3 {[%clk
0:03:03.3]} 11... Qc7 {[%clk 0:02:47.8]} 12. Nbd2 {[%clk 0:03:03.6]} 12... Re8
{[%clk 0:02:39.8]} 13. Nf1 {[%clk 0:03:04.1]} 13... Bf8 {[%clk 0:02:38.3]} 14.
Bg5 {[%clk 0:03:03.7]} 14... Nh5 {[%clk 0:02:20.5]} 15. Ne3 {[%clk 0:02:58.8]}
15... Bb7 {[%clk 0:02:17.5]} 16. Nxe5 {[%clk 0:02:23.1]} 16... Rxe5 {[%clk
0:01:52.5]} 17. Qxh5 {[%clk 0:02:23]} 17... g6 {[%clk 0:01:44.4]} 18. Qg4 {[%clk
0:02:11.9]} 18... Bg7 {[%clk 0:01:32.9]} 19. Bf4 {[%clk 0:02:11.1]} 19... Ree8
{[%clk 0:01:28.3]} 20. Qg3 {[%clk 0:02:06.8]} 20... Rad8 {[%clk 0:01:27.8]} 21.
Ng4 {[%clk 0:02:00.6]} 21... h5 {[%clk 0:01:24.6]} 22. Ne3 {[%clk 0:01:56.6]}
22... b4 {[%clk 0:01:24.9]} 23. Ba4 {[%clk 0:01:50.8]} 23... Re6 {[%clk
0:01:04.8]} 24. Rac1 {[%clk 0:01:50.1]} 24... Qb6 {[%clk 0:00:54.4]} 25. cxb4
{[%clk 0:01:38]} 25... Qxb4 {[%clk 0:00:52.2]} 26. b3 {[%clk 0:01:38.4]} 26...
Qa3 {[%clk 0:00:38.1]} 27. Rc2 {[%clk 0:01:37.1]} 27... Qb4 {[%clk 0:00:36.9]}
28. Bg5 {[%clk 0:01:30.9]} 28... Ra8 {[%clk 0:00:32]} 29. Bd7 {[%clk 0:01:29]}
29... Re5 {[%clk 0:00:22.9]} 30. f4 {[%clk 0:01:24.8]} 30... Ree8 {[%clk
0:00:23.4]} 31. Bxe8 {[%clk 0:01:24.3]} 31... Rxe8 {[%clk 0:00:24.3]} 32. f5
{[%clk 0:01:16.9]} 32... Nc6 {[%clk 0:00:24.1]} 33. Nd5 {[%clk 0:01:14.8]} 33...
Qa5 {[%clk 0:00:23.2]} 34. fxg6 {[%clk 0:01:11.5]} 34... fxg6 {[%clk 0:00:21.5]}
35. Qxd6 {[%clk 0:01:11.2]} 35... Ne5 {[%clk 0:00:15.3]} 36. Qxc5 {[%clk
0:01:02.7]} 36... Qxc5+ {[%clk 0:00:12.5]} 37. Rxc5 {[%clk 0:01:03.6]} 37... Nf7
{[%clk 0:00:13.2]} 38. Be3 {[%clk 0:01:02.5]} 38... Ne5 {[%clk 0:00:09.1]} 39.
h3 {[%clk 0:00:54.2]} 39... Bxd5 {[%clk 0:00:03.2]} 40. Rxd5 {[%clk 0:00:53.8]}
40... Nc6 {[%clk 0:00:03.9]} 41. Rd6 {[%clk 0:00:49.9]} 41... Nb4 {[%clk
0:00:03.7]} 42. Rxg6 {[%clk 0:00:46.3]} 42... Kh7 {[%clk 0:00:03.4]} 43. Rg5
{[%clk 0:00:44.2]} 43... Nc2 {[%clk 0:00:03.4]} 44. Rxh5+ {[%clk 0:00:39.1]}
44... Kg6 {[%clk 0:00:02.2]} 45. Rg5+ {[%clk 0:00:39.3]} 45... Kh7 {[%clk
0:00:02.9]} 46. Rxg7+ {[%clk 0:00:33.9]} 46... Kxg7 {[%clk 0:00:02.9]} 47. Bc5
{[%clk 0:00:34.4]} 47... Rc8 {[%clk 0:00:02.1]} 48. b4 {[%clk 0:00:31.9]} 48...
Na3 {[%clk 0:00:02.3]} 49. d4 {[%clk 0:00:28.5]} 49... Kf6 {[%clk 0:00:02.9]}
50. Rf1+ {[%clk 0:00:25.4]} 50... Ke6 {[%clk 0:00:03]} 51. Rf5 {[%clk
0:00:24.8]} 51... Nc4 {[%clk 0:00:02.5]} 52. d5+ {[%clk 0:00:23.6]} 52... Kd7
{[%clk 0:00:03]} 53. Rf7+ {[%clk 0:00:23.8]} 53... Ke8 {[%clk 0:00:03.6]} 54.
Rf8+ {[%clk 0:00:23.6]} 54... Kd7 {[%clk 0:00:04.4]} 55. Rxc8 {[%clk 0:00:24]}
55... Kxc8 {[%clk 0:00:05.3]} 56. Kf2 {[%clk 0:00:23.8]} 56... Kd7 {[%clk
0:00:04.6]} 57. Kf3 {[%clk 0:00:23.8]} 57... a5 {[%clk 0:00:02.8]} 58. bxa5
{[%clk 0:00:23.3]} 58... Nxa5 {[%clk 0:00:03.3]} 59. Kf4 {[%clk 0:00:23.8]}
59... Nb7 {[%clk 0:00:04.1]} 60. Bd4 {[%clk 0:00:23.6]} 60... Nd6 {[%clk
0:00:04.5]} 61. e5 {[%clk 0:00:23.3]} 61... Nb5 {[%clk 0:00:05]} 62. Bc5 {[%clk
0:00:23.4]} 62... Nc3 {[%clk 0:00:05.3]} 63. e6+ {[%clk 0:00:23.2]} 63... Ke8
{[%clk 0:00:05.9]} 64. Ke5 {[%clk 0:00:23.7]} 64... Nb5 {[%clk 0:00:05.3]} 65.
d6 {[%clk 0:00:22.7]} 65... Nc7 {[%clk 0:00:06.1]} 66. d7+ {[%clk 0:00:18.8]}
66... Kd8 {[%clk 0:00:06.3]} 67. Bb6 {[%clk 0:00:18.2]} 67... Ke7 {[%clk
0:00:06.1]} 68. Bxc7 {[%clk 0:00:18.1]} 68... Kf8 {[%clk 0:00:06.9]} 69. d8=Q+
{[%clk 0:00:18.2]} 69... Kg7 {[%clk 0:00:07.6]} 70. Qf6+ {[%clk 0:00:18.1]}
70... Kh7 {[%clk 0:00:08.3]} 71. e7 {[%clk 0:00:17]} 71... Kg8 {[%clk 0:00:09]}
72. e8=Q+ {[%clk 0:00:17]} 1-0

[Event "Early-Titled-Tuesday-Blitz-October-10-2023"]
[Site "Chess.com"]
[Date "2023.10.10"]
[Round "2"]
[White "Msb2"]
[Black "combidharma"]
[Result "0-1"]
[WhiteElo "3067"]
[BlackElo "2650"]
[TimeControl "180+1"]
[EndTime "8:19:03 PDT"]
[Termination "combidharma won by checkmate"]

1. d4 {[%clk 0:03:00.9]} 1... d5 {[%clk 0:02:50.9]} 2. c4 {[%clk 0:03:01.4]}
2... c6 {[%clk 0:02:51]} 3. Nf3 {[%clk 0:03:01.5]} 3... Nf6 {[%clk 0:02:50.9]}
4. Nc3 {[%clk 0:03:02.4]} 4... e6 {[%clk 0:02:49.1]} 5. Qc2 {[%clk 0:03:02.8]}
5... Nbd7 {[%clk 0:02:48.2]} 6. cxd5 {[%clk 0:03:02.5]} 6... exd5 {[%clk
0:02:46.6]} 7. Bg5 {[%clk 0:03:03]} 7... Bd6 {[%clk 0:02:43.3]} 8. e3 {[%clk
0:03:03]} 8... O-O {[%clk 0:02:42.5]} 9. Bd3 {[%clk 0:03:03.4]} 9... h6 {[%clk
0:02:43]} 10. Bh4 {[%clk 0:03:04]} 10... a6 {[%clk 0:02:37.1]} 11. O-O-O {[%clk
0:03:02.4]} 11... Be7 {[%clk 0:02:33.5]} 12. Rdg1 {[%clk 0:02:58.8]} 12... Re8
{[%clk 0:02:31.6]} 13. g4 {[%clk 0:02:59.1]} 13... Ne4 {[%clk 0:02:27.3]} 14.
Bxe7 {[%clk 0:02:55.1]} 14... Qxe7 {[%clk 0:02:27.2]} 15. h4 {[%clk 0:02:55.4]}
15... Ndf6 {[%clk 0:02:16.8]} 16. Ne5 {[%clk 0:02:51.1]} 16... Nd7 {[%clk
0:02:01.8]} 17. g5 {[%clk 0:02:31.6]} 17... Nxe5 {[%clk 0:01:52.7]} 18. dxe5
{[%clk 0:02:31.8]} 18... h5 {[%clk 0:01:49.2]} 19. Bxe4 {[%clk 0:02:16.8]} 19...
dxe4 {[%clk 0:01:50]} 20. Nxe4 {[%clk 0:01:48.1]} 20... Qxe5 {[%clk 0:01:47.2]}
21. Nf6+ {[%clk 0:01:48.5]} 21... gxf6 {[%clk 0:01:32.3]} 22. gxf6+ {[%clk
0:01:49.4]} 22... Kf8 {[%clk 0:01:17.6]} 23. Rg5 {[%clk 0:01:49.1]} 23... Qxf6
{[%clk 0:01:12.4]} 24. Rhg1 {[%clk 0:01:49.5]} 24... Bg4 {[%clk 0:01:10.4]} 25.
Qc5+ {[%clk 0:01:26.2]} 25... Qe7 {[%clk 0:01:06.7]} 26. Rg8+ {[%clk 0:01:08.2]}
26... Kxg8 {[%clk 0:00:59.3]} 27. Qxh5 {[%clk 0:01:09.1]} 27... Qf6 {[%clk
0:00:40.2]} 28. Rxg4+ {[%clk 0:01:06.9]} 28... Kf8 {[%clk 0:00:40.2]} 29. Rf4
{[%clk 0:01:07.4]} 29... Qe6 {[%clk 0:00:34.3]} 30. Qh8+ {[%clk 0:00:51.8]}
30... Ke7 {[%clk 0:00:33.7]} 31. Qh7 {[%clk 0:00:52.7]} 31... Rh8 {[%clk
0:00:26.1]} 32. Qc2 {[%clk 0:00:52.8]} 32... Rh5 {[%clk 0:00:21.2]} 33. Qc3
{[%clk 0:00:40.7]} 33... Rd8 {[%clk 0:00:20.2]} 34. f3 {[%clk 0:00:31.3]} 34...
Qd6 {[%clk 0:00:17.6]} 35. Re4+ {[%clk 0:00:25.1]} 35... Kf8 {[%clk 0:00:18.1]}
36. Rd4 {[%clk 0:00:25.2]} 36... Rd5 {[%clk 0:00:18.3]} 37. Rg4 {[%clk
0:00:10.2]} 37... Rd1+ {[%clk 0:00:18.2]} 38. Kc2 {[%clk 0:00:11.1]} 38... Qd2+
{[%clk 0:00:18.6]} 39. Qxd2 {[%clk 0:00:11.3]} 39... R1xd2+ {[%clk 0:00:19.5]}
40. Kc3 {[%clk 0:00:12.2]} 40... R2d3+ {[%clk 0:00:20.4]} 41. Kc4 {[%clk
0:00:12.8]} 41... Rxe3 {[%clk 0:00:21.3]} 42. Kc5 {[%clk 0:00:13.7]} 42... Red3
{[%clk 0:00:21.9]} 43. h5 {[%clk 0:00:13.3]} 43... R3d5+ {[%clk 0:00:22.8]} 44.
Kb6 {[%clk 0:00:13.9]} 44... Rxh5 {[%clk 0:00:23.4]} 45. Kc7 {[%clk 0:00:14.6]}
45... Rd2 {[%clk 0:00:22.2]} 46. b4 {[%clk 0:00:15.2]} 46... Rxa2 {[%clk
0:00:20.9]} 47. Kxb7 {[%clk 0:00:15.8]} 47... Rb5+ {[%clk 0:00:21.4]} 48. Kxc6
{[%clk 0:00:15.9]} 48... Rc2+ {[%clk 0:00:21.7]} 49. Kd6 {[%clk 0:00:16]} 49...
Rb2 {[%clk 0:00:21.6]} 50. Rh4 {[%clk 0:00:14.6]} 50... R2xb4 {[%clk 0:00:21.6]}
51. f4 {[%clk 0:00:15.3]} 51... Rb6+ {[%clk 0:00:21.3]} 52. Kc5 {[%clk
0:00:15.5]} 52... R4b5+ {[%clk 0:00:22]} 53. Kc4 {[%clk 0:00:16]} 53... a5
{[%clk 0:00:22.7]} 54. Rh1 {[%clk 0:00:15.9]} 54... a4 {[%clk 0:00:22.9]} 55. f5
{[%clk 0:00:15.9]} 55... Rxf5 {[%clk 0:00:22.9]} 56. Ra1 {[%clk 0:00:15.2]}
56... Ra5 {[%clk 0:00:23.4]} 57. Kc3 {[%clk 0:00:15.7]} 57... a3 {[%clk
0:00:23.6]} 58. Ra2 {[%clk 0:00:16.6]} 58... Rb2 {[%clk 0:00:23.4]} 59. Ra1
{[%clk 0:00:16.7]} 59... f5 {[%clk 0:00:22.2]} 60. Rf1 {[%clk 0:00:16]} 60...
Rb7 {[%clk 0:00:19.8]} 61. Kc4 {[%clk 0:00:15]} 61... a2 {[%clk 0:00:20.1]} 62.
Ra1 {[%clk 0:00:14.1]} 62... Rb1 {[%clk 0:00:20]} 63. Rxa2 {[%clk 0:00:13.6]}
63... Rxa2 {[%clk 0:00:20.9]} 64. Kc3 {[%clk 0:00:14.5]} 64... f4 {[%clk
0:00:21]} 65. Kd3 {[%clk 0:00:15.4]} 65... f3 {[%clk 0:00:21.9]} 66. Ke3 {[%clk
0:00:16.3]} 66... f2 {[%clk 0:00:22.8]} 67. Ke4 {[%clk 0:00:17.2]} 67... f1=Q
{[%clk 0:00:22.5]} 68. Kd5 {[%clk 0:00:18.1]} 68... Qc4+ {[%clk 0:00:22.2]} 69.
Kd6 {[%clk 0:00:19]} 69... Rb6+ {[%clk 0:00:22.1]} 70. Kd7 {[%clk 0:00:19.3]}
70... Ra7+ {[%clk 0:00:22.2]} 71. Kd8 {[%clk 0:00:20.2]} 71... Qd5+ {[%clk
0:00:19.5]} 72. Kc8 {[%clk 0:00:20.3]} 72... Rc6+ {[%clk 0:00:19.4]} 73. Kb8
{[%clk 0:00:20.7]} 73... Rb7+ {[%clk 0:00:19.1]} 74. Ka8 {[%clk 0:00:21.6]}
74... Ra6# {[%clk 0:00:18.4]} 0-1